fUST/lending_fUST_20240804
["ID","MTS","AMOUNT","RATE_DAILY","PERIOD"]
[334093058,1722761441434,-1127.656686,0.00015598,2]
[334093059,1722761441444,-1127.656686,0.00015598,2]
[334093060,1722761441456,-150.112233,0.000156,2]
[334093061,1722761441467,-8953.31060833,0.00015608,2]
[334093062,1722761441478,-151.0,0.00015608,2]
[334093063,1722761441488,-2681.36424368,0.00015609,2]
[334093064,1722761441499,-1553.23955848,0.0001567,2]
[334093065,1722761441508,-20294.0681829,0.00015687,2]
[334093066,1722761441520,-151.0,0.00015688,2]
[334093067,1722761441530,-151.0,0.00015688,2]
[334093068,1722761441540,-151.0,0.00015688,2]
[334093069,1722761441549,-295.598548,0.00015688,2]
[334093070,1722761441558,-157.657305,0.00015688,2]
[334093071,1722761441567,-151.0,0.00015688,2]
[334093072,1722761441577,-152.284685,0.00015688,2]
[334093073,1722761441586,-151.0,0.00015688,2]
[334093074,1722761441595,-151.0,0.00015688,2]
[334093075,1722761441604,-696.512922,0.00015688,2]
[334093076,1722761441613,-696.512922,0.00015688,2]
[334093077,1722761441622,-151.0,0.00015688,2]
[334093078,1722761441631,-151.0,0.00015688,2]
[334093079,1722761441640,-180.43595,0.00015688,2]
[334093080,1722761441649,-180.43595,0.00015688,2]
[334093081,1722761441658,-151.0,0.00015688,2]
[334093082,1722761441668,-151.0,0.00015688,2]
[334093083,1722761441677,-370.85385617,0.00015689,2]
[334093084,1722761441687,-500.0,0.00015689,2]
[334093085,1722761441696,-158.84238332,0.00015689,2]
[334093086,1722761441706,-500.0,0.00015689,2]
[334093087,1722761441717,-188.05474711,0.00015689,2]
[334093088,1722761441726,-500.0,0.00015689,2]
[334093089,1722761441735,-500.0,0.00015689,2]
[334093090,1722761441745,-500.0,0.00015689,2]
[334093091,1722761441756,-500.0,0.00015689,2]
[334093092,1722761441768,-500.0,0.00015689,2]
[334093093,1722761441777,-500.0,0.0001569,2]
[334093094,1722761441786,-1057.08,0.0001569,2]
[334093095,1722761441800,-151.0,0.00015697,2]
[334093096,1722761441810,-500.0,0.00015697,2]
[334093097,1722761441820,-1127.656686,0.00015697,2]
[334093098,1722761441829,-1127.656686,0.00015697,2]
[334093099,1722761441839,-1057.08,0.00015697,2]
[334093100,1722761441849,-5038.43591044,0.00015698,5]
[334093101,1722761441859,-60882.2045486,0.00015698,2]
[334093102,1722761441870,-151.0,0.00015698,2]
[334093103,1722761441880,-156.169019,0.00015698,2]
[334093104,1722761441891,-156.169019,0.00015698,2]
[334093105,1722761441901,-218.64845,0.00015698,2]
[334093106,1722761441912,-151.0,0.00015698,2]
[334093107,1722761441924,-151.0,0.00015698,2]
[334093108,1722761441935,-151.0,0.00015698,2]
[334093109,1722761441944,-151.0,0.00015698,2]
[334093110,1722761441954,-295.791568,0.00015698,2]
[334093111,1722761441964,-151.0,0.00015698,2]
[334093112,1722761441975,-151.0,0.00015698,2]
[334093113,1722761441987,-500.0,0.00015698,2]
[334093114,1722761441997,-151.0,0.00015698,2]
[334093115,1722761442009,-151.0,0.00015698,2]
[334093116,1722761442020,-151.0,0.00015698,2]
[334093117,1722761442029,-151.0,0.00015698,2]
[334093118,1722761442038,-696.512922,0.00015698,2]
[334093119,1722761442047,-696.512922,0.00015698,2]
[334093120,1722761442057,-151.0,0.00015698,2]
[334093121,1722761442067,-151.0,0.00015698,2]
[334093122,1722761442077,-180.43595,0.00015698,2]
[334093123,1722761442086,-180.43595,0.00015698,2]
[334093124,1722761442095,-151.0,0.00015698,2]
[334093125,1722761442106,-234.699034,0.00015698,2]
[334093126,1722761442116,-1127.656686,0.00015698,2]
[334093127,1722761442125,-1127.656686,0.00015698,2]
[334093128,1722761442135,-1057.08,0.00015698,2]
[334093129,1722761442146,-1306.85492487,0.000157,2]
[334093130,1722761442255,-3159.51557778,0.000157,2]
[334093131,1722761442267,-151.0,0.00015707,2]
[334093132,1722761442277,-156.169019,0.00015707,2]
[334093133,1722761442287,-156.169019,0.00015707,2]
[334093134,1722761442297,-500.0,0.00015707,2]
[334093135,1722761442308,-224.23689076,0.00015707,2]
[334093136,1722761442318,-1057.08,0.00015707,2]
[334093137,1722761442327,-1057.08,0.00015707,2]
[334093138,1722761442336,-1057.08,0.00015707,2]
[334093139,1722761442345,-763.53014935,0.00015708,2]
[334093140,1722761442355,-7001.07154863,0.00015708,2]
[334093141,1722761442365,-1763.34953629,0.00015708,2]
[334093142,1722761442374,-1643.04146398,0.00015708,7]
[334093143,1722761442383,-2138.98947464,0.00015708,2]
[334093144,1722761442393,-3087.44790236,0.00015708,2]
[334093145,1722761442402,-173.08964107,0.00015708,2]
[334093146,1722761442415,-9468.56865862,0.00015708,2]
[334093147,1722761442426,-7774.59967491,0.00015708,2]
[334093148,1722761442435,-1794.47294319,0.00015708,2]
[334093149,1722761442445,-1610.56614984,0.00015708,2]
[334093150,1722761442454,-2278.01854997,0.00015708,3]
[334093151,1722761442463,-1991.50486571,0.00015708,2]
[334093152,1722761442472,-2124.35920477,0.00015708,2]
[334093153,1722761442481,-1500.0,0.00015708,2]
[334093154,1722761442490,-1438.19153297,0.00015708,2]
[334093155,1722761442499,-2162.43676373,0.00015708,2]
[334093156,1722761442508,-1382.82376341,0.00015708,2]
[334093157,1722761442519,-20757.81316463,0.00015708,2]
[334093158,1722761442528,-29718.08740092,0.00015708,2]
[334093159,1722761442537,-726.866593,0.00015708,2]
[334093160,1722761442546,-151.0,0.00015708,2]
[334093161,1722761442556,-151.0,0.00015708,2]
[334093162,1722761442566,-151.0,0.00015708,2]
[334093163,1722761442575,-299.461336,0.00015708,2]
[334093164,1722761442584,-466.039233,0.00015708,2]
[334093165,1722761442593,-466.039233,0.00015708,2]
[334093166,1722761442602,-151.0,0.00015708,2]
[334093167,1722761442611,-151.0,0.00015708,2]
[334093169,1722761442620,-151.0,0.00015708,2]
[334093170,1722761442630,-151.0,0.00015708,2]
[334093171,1722761442639,-156.169019,0.00015708,2]
[334093172,1722761442648,-156.169019,0.00015708,2]
[334093173,1722761442657,-156.169019,0.00015708,2]
[334093174,1722761442666,-156.169019,0.00015708,2]
[334093176,1722761442675,-152.428404,0.00015708,2]
[334093177,1722761442685,-151.0,0.00015708,2]
[334093178,1722761442694,-151.0,0.00015708,2]
[334093179,1722761442703,-151.0,0.00015708,2]
[334093180,1722761442713,-151.0,0.00015708,2]
[334093181,1722761442724,-151.0,0.00015708,2]
[334093182,1722761442734,-151.0,0.00015708,2]
[334093183,1722761442746,-151.0,0.00015708,2]
[334093184,1722761442758,-151.0,0.00015708,2]
[334093185,1722761442768,-151.0,0.00015708,2]
[334093186,1722761442778,-151.0,0.00015708,2]
[334093187,1722761442787,-151.0,0.00015708,2]
[334093188,1722761442798,-151.0,0.00015708,2]
[334093190,1722761442808,-151.0,0.00015708,2]
[334093191,1722761442817,-151.0,0.00015708,2]
[334093192,1722761442828,-151.0,0.00015708,2]
[334093193,1722761442837,-151.0,0.00015708,2]
[334093194,1722761442847,-696.512922,0.00015708,2]
[334093195,1722761442857,-696.512922,0.00015708,2]
[334093196,1722761442867,-696.512922,0.00015708,2]
[334093197,1722761442876,-696.512922,0.00015708,2]
[334093198,1722761442886,-151.0,0.00015708,2]
[334093199,1722761442896,-151.0,0.00015708,2]
[334093201,1722761442906,-261.576782,0.00015708,2]
[334093203,1722761442915,-180.43595,0.00015708,2]
[334093204,1722761442927,-180.43595,0.00015708,2]
[334093205,1722761442936,-180.43595,0.00015708,2]
[334093206,1722761442947,-180.43595,0.00015708,2]
[334093207,1722761442959,-1127.656686,0.00015708,2]
[334093208,1722761442970,-1127.656686,0.00015708,2]
[334093209,1722761442981,-1127.656686,0.00015708,2]
[334093210,1722761442991,-1127.656686,0.00015708,2]
[334093211,1722761443000,-1127.656686,0.00015708,2]
[334093212,1722761443010,-1127.656686,0.00015708,2]
[334093213,1722761443020,-1057.08,0.00015708,2]
[334093214,1722761443030,-2430.17346916,0.00015709,2]
[334093215,1722761443077,-151.0,0.00015698,2]
[334093216,1722761443087,-151.0,0.00015698,2]
[334093217,1722761443100,-151.0,0.00015708,2]
[334093218,1722761443110,-32580.00283456,0.00015709,2]
[334093219,1722761443120,-151.0,0.00015709,2]
[334093220,1722761443130,-151.0,0.00015709,2]
[334093221,1722761443142,-151.779904,0.00015709,2]
[334093222,1722761443154,-466.039233,0.00015709,2]
[334093223,1722761443164,-466.039233,0.00015709,2]
[334093224,1722761443175,-151.0,0.00015709,2]
[334093225,1722761443186,-156.169019,0.00015709,2]
[334093226,1722761443195,-156.169019,0.00015709,2]
[334093227,1722761443206,-151.0,0.00015709,2]
[334093228,1722761443217,-151.0,0.00015709,2]
[334093229,1722761443227,-151.0,0.00015709,2]
[334093230,1722761443239,-151.0,0.00015709,2]
[334093231,1722761443251,-151.0,0.00015709,2]
[334093232,1722761443263,-151.0,0.00015709,2]
[334093233,1722761443273,-696.512922,0.00015709,2]
[334093234,1722761443283,-696.512922,0.00015709,2]
[334093235,1722761443293,-151.0,0.00015709,2]
[334093236,1722761443304,-180.43595,0.00015709,2]
[334093237,1722761443315,-180.43595,0.00015709,2]
[334093238,1722761443325,-1127.656686,0.00015709,2]
[334093239,1722761443334,-1127.656686,0.00015709,2]
[334093240,1722761443343,-12128.64193988,0.00015749,5]
[334093241,1722761443352,-20294.0681829,0.00015749,2]
[334093242,1722761443362,-1057.08,0.0001575,2]
[334093243,1722761443372,-500.0,0.0001576,2]
[334093244,1722761443381,-500.0,0.0001576,2]
[334093245,1722761443391,-500.0,0.0001576,2]
[334093246,1722761443400,-500.0,0.0001576,2]
[334093247,1722761443410,-500.0,0.0001576,2]
[334093248,1722761443419,-813.37,0.0001576,2]
[334093249,1722761443428,-500.0,0.0001576,2]
[334093250,1722761443438,-500.0,0.0001576,2]
[334093251,1722761443448,-500.0,0.0001576,2]
[334093252,1722761443457,-500.0,0.0001576,2]
[334093253,1722761443467,-500.0,0.0001576,2]
[334093254,1722761443476,-1127.656686,0.0001576,2]
[334093255,1722761443486,-1127.656686,0.0001576,2]
[334093256,1722761443495,-500.0,0.0001576,2]
[334093257,1722761443504,-1615.02,0.0001576,2]
[334093258,1722761443514,-1263.1,0.0001576,2]
[334093259,1722761443530,-732.46,0.0001576,2]
[334093260,1722761443539,-500.0,0.0001576,2]
[334093261,1722761443548,-500.0,0.0001576,2]
[334093262,1722761443557,-500.0,0.0001576,2]
[334093263,1722761443566,-500.0,0.0001576,2]
[334093264,1722761443577,-500.0,0.0001576,2]
[334093265,1722761443586,-13556.17118719,0.0001576,2]
[334093286,1722761447868,-500.0,0.00015486,2]
[334093287,1722761447878,-151.0,0.00015497,2]
[334093288,1722761447888,-151.0,0.00015497,2]
[334093289,1722761447903,-151.0,0.00015608,2]
[334093290,1722761447913,-151.0,0.00015608,2]
[334093291,1722761447923,-151.0,0.00015698,2]
[334093292,1722761447934,-151.0,0.00015698,2]
[334093293,1722761447944,-28.22409934,0.00015698,2]
[334093294,1722761447957,-122.77590066,0.00015698,2]
[334093295,1722761447967,-151.0,0.00015698,2]
[334093296,1722761447976,-59.62277644,0.00015708,2]
[334093297,1722761447988,-91.37722356,0.00015708,2]
[334093298,1722761447997,-151.0,0.00015708,2]
[334093299,1722761448007,-151.0,0.00015708,2]
[334093300,1722761448019,-151.0,0.00015709,2]
[334093301,1722761448034,-151.0,0.00015709,2]
[334093302,1722761448043,-151.0,0.0001576,2]
[334093303,1722761448052,-151.0,0.0001576,2]
[334093304,1722761448061,-4788.74622431,0.0001576,2]
[334093305,1722761448072,-1949.1507714,0.0001576,2]
[334093306,1722761448081,-466.039233,0.00015762,2]
[334093307,1722761448091,-466.039233,0.00015762,2]
[334093308,1722761448101,-156.169019,0.00015762,2]
[334093309,1722761448110,-86.658965,0.00015762,2]
[334093311,1722761538029,154.3711239,0.00010959,2]
[334093326,1722762351150,-620.96,0.00010959,2]
[334093327,1722762351175,-709.09421038,0.00013283,2]
[334093328,1722762433170,-421.85881543,0.00013283,2]
[334093329,1722762435098,-762.26576171,0.00013283,2]
[334093330,1722762435120,-508.74404664,0.00013283,2]
[334093331,1722762446103,-386.53143529,0.00013283,2]
[334093332,1722762446127,-1093.26908423,0.00013938,2]
[334093333,1722762448111,-616.23405097,0.00013938,2]
[334093334,1722762448137,-157.521555,0.00013963,2]
[334093335,1722762448161,-275.7551173,0.00014141,2]
[334093336,1722762448186,-412.99526117,0.00014247,2]
[334093379,1722762632387,-554.880095,0.00014247,2]
[334093381,1722762632397,-2220.17172648,0.00014247,2]
[334093383,1722762632407,-483.69035657,0.00015,2]
[334093385,1722762632416,-2491.17914476,0.00015385,2]
[334093386,1722762632426,-354.9677676,0.00015432,2]
[334093388,1722762632435,-300.0,0.00015483,2]
[334093390,1722762632445,-500.0,0.00015484,2]
[334093392,1722762632455,-1210.47,0.00015484,2]
[334093394,1722762632464,-500.0,0.00015484,2]
[334093396,1722762632473,-500.0,0.00015485,2]
[334093399,1722762632485,-500.0,0.00015485,2]
[334093401,1722762632495,-500.0,0.00015485,2]
[334093403,1722762632504,-500.0,0.00015485,2]
[334093405,1722762632515,-500.0,0.00015485,2]
[334093407,1722762632524,-500.0,0.00015485,2]
[334093409,1722762632533,-500.0,0.00015485,2]
[334093411,1722762632543,-500.0,0.00015485,2]
[334093413,1722762632552,-500.0,0.00015485,2]
[334093415,1722762632561,-500.0,0.00015485,2]
[334093417,1722762632571,-470.77,0.00015485,2]
[334093419,1722762632580,-500.0,0.00015485,2]
[334093421,1722762632589,-500.0,0.00015485,2]
[334093423,1722762632600,-500.0,0.00015485,2]
[334093425,1722762632609,-500.0,0.00015485,2]
[334093427,1722762632618,-500.0,0.00015485,2]
[334093429,1722762632627,-500.0,0.00015485,2]
[334093431,1722762632637,-500.0,0.00015485,2]
[334093433,1722762632647,-500.0,0.00015485,2]
[334093435,1722762632656,-500.0,0.00015485,2]
[334093437,1722762632665,-500.0,0.00015485,2]
[334093439,1722762632675,-500.0,0.00015485,2]
[334093441,1722762632686,-500.0,0.00015485,2]
[334093443,1722762632696,-500.0,0.00015485,2]
[334093444,1722762632707,-504.50013781,0.00015485,2]
[334093446,1722762632717,-500.0,0.00015485,2]
[334093448,1722762632727,-500.0,0.00015485,2]
[334093450,1722762632739,-500.0,0.00015485,2]
[334093452,1722762632751,-500.0,0.00015485,2]
[334093454,1722762632763,-500.0,0.00015485,2]
[334093457,1722762632775,-500.0,0.00015485,2]
[334093459,1722762632786,-260.33765639,0.00015485,2]
[334093460,1722762632796,-412.80300767,0.00015485,2]
[334093462,1722762632808,-500.0,0.00015485,2]
[334093464,1722762632819,-500.0,0.00015485,2]
[334093466,1722762632832,-500.0,0.00015485,2]
[334093468,1722762632843,-485.56524612,0.00015485,2]
[334093470,1722762632858,-14.43475388,0.00015485,2]
[334093471,1722762632868,-218.04690979,0.00015485,2]
[334093473,1722762632881,-201.94773003,0.00015485,2]
[334093487,1722762640652,-354.9677677,0.00015456,2]
[334093488,1722762640662,-279.38226997,0.00015485,2]
[334093489,1722762640672,-500.0,0.00015485,2]
[334093490,1722762640683,-500.0,0.00015485,2]
[334093491,1722762640694,-500.0,0.00015485,2]
[334093492,1722762640706,-423.37282897,0.00015485,2]
[334093493,1722762640716,-152.79767232,0.00015485,2]
[334093494,1722762640726,-500.0,0.00015485,2]
[334093495,1722762640737,-507.34818783,0.00015485,2]
[334093496,1722762640748,-834.46,0.00015485,2]
[334093497,1722762640758,-500.0,0.00015485,2]
[334093498,1722762640769,-500.0,0.00015485,2]
[334093499,1722762640779,-500.0,0.00015485,2]
[334093500,1722762640789,-500.0,0.00015485,2]
[334093501,1722762640798,-500.0,0.00015485,2]
[334093502,1722762640809,-500.0,0.00015485,2]
[334093503,1722762640820,-500.0,0.00015485,2]
[334093504,1722762640830,-500.0,0.00015485,2]
[334093505,1722762640838,-500.0,0.00015485,2]
[334093506,1722762640847,-500.0,0.00015485,2]
[334093507,1722762640858,-803.05,0.00015485,2]
[334093508,1722762640869,-500.0,0.00015485,2]
[334093509,1722762640879,-500.0,0.00015485,2]
[334093510,1722762640889,-500.0,0.00015485,2]
[334093511,1722762640900,-448.48008776,0.00015485,2]
[334093512,1722762640912,-500.0,0.00015485,2]
[334093513,1722762640922,-500.0,0.00015485,2]
[334093514,1722762640931,-500.0,0.00015485,2]
[334093515,1722762640942,-500.0,0.00015485,2]
[334093516,1722762640953,-500.0,0.00015485,2]
[334093517,1722762640963,-500.0,0.00015485,2]
[334093518,1722762640973,-500.0,0.00015485,2]
[334093519,1722762640983,-559.49343968,0.00015485,2]
[334093520,1722762640994,-500.0,0.00015485,2]
[334093521,1722762641005,-500.0,0.00015485,2]
[334093522,1722762641015,-500.0,0.00015485,2]
[334093523,1722762641026,-500.0,0.00015485,2]
[334093524,1722762641038,-500.0,0.00015485,2]
[334093525,1722762641047,-500.0,0.00015485,2]
[334093526,1722762641057,-533.26,0.00015485,2]
[334093527,1722762641067,-500.0,0.00015485,2]
[334093528,1722762641079,-500.0,0.00015485,2]
[334093529,1722762641089,-500.0,0.00015485,2]
[334093530,1722762641100,-1621.45,0.00015485,2]
[334093531,1722762641111,-500.0,0.00015485,2]
[334093532,1722762641122,-500.0,0.00015485,2]
[334093533,1722762641133,-500.0,0.00015485,2]
[334093534,1722762641143,-734.37,0.00015485,2]
[334093535,1722762641154,-500.0,0.00015485,2]
[334093536,1722762641164,-736.81,0.00015485,2]
[334093537,1722762641175,-500.0,0.00015485,2]
[334093538,1722762641185,-500.0,0.00015485,2]
[334093539,1722762641195,-500.0,0.00015485,2]
[334093540,1722762641204,-604.59,0.00015485,2]
[334093541,1722762641214,-500.0,0.00015486,2]
[334093542,1722762641224,-506.05120005,0.00015486,2]
[334093543,1722762641235,-500.0,0.00015486,2]
[334093544,1722762641244,-500.0,0.00015486,2]
[334093545,1722762641254,-500.0,0.00015486,2]
[334093546,1722762641263,-500.0,0.00015486,2]
[334093547,1722762641274,-500.0,0.00015486,2]
[334093548,1722762641284,-500.0,0.00015486,2]
[334093549,1722762641294,-500.0,0.00015486,2]
[334093550,1722762641303,-500.0,0.00015486,2]
[334093551,1722762641314,-519.81703122,0.00015486,2]
[334093552,1722762641325,-500.0,0.00015486,2]
[334093553,1722762641335,-477.67427206,0.00015486,2]
[334093554,1722762641345,-500.0,0.00015486,2]
[334093555,1722762641356,-500.0,0.00015486,2]
[334093556,1722762641366,-500.0,0.00015486,2]
[334093557,1722762641377,-500.0,0.00015486,2]
[334093558,1722762641390,-500.0,0.00015486,2]
[334093559,1722762641400,-252.11695064,0.00015486,2]
[334093560,1722762641410,-500.0,0.00015486,2]
[334093561,1722762641420,-500.0,0.00015486,2]
[334093562,1722762641431,-500.0,0.00015486,2]
[334093563,1722762641440,-491.18033109,0.00015486,2]
[334093564,1722762641450,-500.0,0.00015486,2]
[334093565,1722762641459,-500.0,0.00015486,2]
[334093566,1722762641469,-470.00293134,0.00015486,2]
[334093567,1722762641479,-500.0,0.00015486,2]
[334093568,1722762641489,-500.0,0.00015486,2]
[334093569,1722762641499,-500.0,0.00015486,2]
[334093570,1722762641508,-500.0,0.00015486,2]
[334093571,1722762641517,-500.0,0.00015486,2]
[334093572,1722762641526,-466.37078687,0.00015588,2]
[334093573,1722762641536,-19691.3765983,0.00015678,2]
[334093574,1722762641548,-19691.3765983,0.00015687,2]
[334093575,1722762641558,-45232.1345148,0.00015688,2]
[334093576,1722762641573,-13341.3493122,0.00015688,2]
[334093577,1722762641582,-23108.99432157,0.0001569,2]
[334093578,1722762641591,-736.81,0.00015696,2]
[334093579,1722762641601,-500.0,0.00015697,2]
[334093580,1722762641611,-500.0,0.00015697,2]
[334093581,1722762641621,-500.0,0.00015697,2]
[334093582,1722762641630,-259.59769932,0.00015697,2]
[334093583,1722762641638,-500.0,0.00015697,2]
[334093584,1722762641647,-500.0,0.00015697,2]
[334093585,1722762641656,-500.0,0.00015697,2]
[334093586,1722762641666,-500.0,0.00015697,2]
[334093587,1722762641675,-500.0,0.00015697,2]
[334093588,1722762641684,-581.63832298,0.00015697,2]
[334093589,1722762641693,-500.0,0.00015697,2]
[334093590,1722762641702,-500.0,0.00015697,2]
[334093591,1722762641712,-500.0,0.00015697,2]
[334093592,1722762641721,-1318.72,0.00015697,2]
[334093593,1722762641730,-500.0,0.00015697,2]
[334093594,1722762641739,-19691.3765983,0.00015698,2]
[334093595,1722762641748,-150.112233,0.000157,2]
[334093596,1722762641757,-7001.07154863,0.00015708,2]
[334093597,1722762641766,-1643.04146398,0.00015708,7]
[334093598,1722762641775,-1991.50486571,0.00015708,2]
[334093599,1722762641784,-1794.47294319,0.00015708,2]
[334093600,1722762641793,-3087.44790236,0.00015708,2]
[334093601,1722762641802,-1763.34953629,0.00015708,2]
[334093602,1722762641811,-1438.19153297,0.00015708,2]
[334093603,1722762641820,-2184.7701195,0.00015708,2]
[334093631,1722763627130,-243.07,0.00010959,2]
[334093632,1722763627153,-202.56,0.00010959,2]
[334093633,1722763627176,-168.8,0.00010959,2]
[334093634,1722763627198,-831.07319053,0.00010959,2]
[334093635,1722763632134,-423.05675416,0.00013489,2]
[334093636,1722763632160,-2.59034387,0.00014247,2]
[334093637,1722763647104,-524.54574613,0.00014247,2]
[334093638,1722763647127,-157.521555,0.00014274,2]
[334093639,1722763647149,-347.77955978,0.00015,4]
[334093640,1722763647171,-5.27852154,0.00015,2]
[334093641,1722763649108,-487.12487609,0.00015,2]
[334093642,1722763649133,-746.193259,0.00015384,2]
[334093643,1722763649157,-150.112233,0.000154,2]
[334093644,1722763649179,-300.0,0.00015474,2]
[334093645,1722763649201,-568.46075031,0.00015475,2]
[334093652,1722763770119,-1727.36632132,0.00013,2]
[334093653,1722763770141,-439.72975104,0.000138,2]
[334093656,1722763814133,91.65338269,0.000138,2]
[334093698,1722763832781,-250.21012427,0.000138,2]
[334093712,1722763838819,-115.58149281,0.000138,2]
[334093714,1722763838831,-1880.67694903,0.000138,2]
[334093716,1722763838842,-4698.85700891,0.00015383,2]
[334093718,1722763838853,-240.0,0.00015473,2]
[334093721,1722763838863,-17249.3896523,0.00015474,2]
[334093722,1722763838874,-1294.95,0.00015482,2]
[334093723,1722763838884,-500.0,0.00015482,2]
[334093724,1722763838895,-500.0,0.00015482,2]
[334093725,1722763838906,-500.0,0.00015482,2]
[334093726,1722763838927,-509.89520557,0.00015482,2]
[334093727,1722763838938,-500.0,0.00015482,2]
[334093728,1722763838953,-500.0,0.00015482,2]
[334093729,1722763838963,-500.0,0.00015483,2]
[334093730,1722763838972,-500.0,0.00015483,2]
[334093731,1722763838983,-500.0,0.00015483,2]
[334093732,1722763838994,-500.0,0.00015483,2]
[334093733,1722763839005,-500.0,0.00015483,2]
[334093734,1722763839015,-520.09439415,0.00015483,2]
[334093735,1722763839030,-500.0,0.00015483,2]
[334093736,1722763839042,-500.0,0.00015483,2]
[334093737,1722763839053,-500.0,0.00015483,2]
[334093738,1722763839064,-500.0,0.00015483,2]
[334093739,1722763839075,-500.0,0.00015483,2]
[334093740,1722763839087,-500.0,0.00015483,2]
[334093741,1722763839098,-500.0,0.00015483,2]
[334093742,1722763839108,-500.0,0.00015483,2]
[334093743,1722763839120,-500.0,0.00015483,2]
[334093744,1722763839131,-500.0,0.00015483,2]
[334093745,1722763839141,-500.0,0.00015483,2]
[334093746,1722763839150,-500.0,0.00015483,2]
[334093747,1722763839159,-500.0,0.00015483,2]
[334093748,1722763839168,-500.0,0.00015483,2]
[334093749,1722763839177,-500.0,0.00015483,2]
[334093750,1722763839186,-500.0,0.00015483,2]
[334093751,1722763839196,-500.0,0.00015483,2]
[334093752,1722763839205,-500.0,0.00015483,2]
[334093753,1722763839214,-505.62071224,0.00015483,2]
[334093754,1722763839223,-502.04426339,0.00015483,2]
[334093755,1722763839233,-500.0,0.00015483,2]
[334093756,1722763839244,-502.89617747,0.00015483,2]
[334093757,1722763839253,-500.0,0.00015483,2]
[334093758,1722763839262,-505.04574179,0.00015483,2]
[334093759,1722763839272,-359.22598153,0.00015483,2]
[334093760,1722763839283,-500.0,0.00015483,2]
[334093761,1722763839294,-527.32885034,0.00015483,2]
[334093762,1722763839305,-500.0,0.00015483,2]
[334093763,1722763839317,-200.88,0.00015483,2]
[334093764,1722763839326,-500.0,0.00015483,2]
[334093765,1722763839337,-500.0,0.00015483,2]
[334093766,1722763839349,-500.0,0.00015483,2]
[334093767,1722763839359,-500.0,0.00015483,2]
[334093768,1722763839368,-500.0,0.00015483,2]
[334093769,1722763839378,-500.0,0.00015483,2]
[334093770,1722763839388,-500.0,0.00015483,2]
[334093772,1722763839399,-500.0,0.00015483,2]
[334093774,1722763839409,-500.0,0.00015483,2]
[334093776,1722763839419,-500.0,0.00015483,2]
[334093778,1722763839428,-874.52,0.00015483,2]
[334093780,1722763839438,-500.0,0.00015483,2]
[334093781,1722763839448,-500.0,0.00015483,2]
[334093783,1722763839459,-500.0,0.00015483,2]
[334093785,1722763839470,-500.0,0.00015483,2]
[334093787,1722763839479,-500.0,0.00015483,2]
[334093788,1722763839491,-500.0,0.00015483,2]
[334093789,1722763839500,-500.0,0.00015483,2]
[334093790,1722763839510,-500.0,0.00015483,2]
[334093791,1722763839520,-500.795235,0.00015483,2]
[334093792,1722763839529,-500.0,0.00015483,2]
[334093793,1722763839538,-500.0,0.00015483,2]
[334093794,1722763839548,-500.0,0.00015483,2]
[334093795,1722763839558,-500.0,0.00015483,2]
[334093796,1722763839568,-840.28,0.00015483,2]
[334093797,1722763839577,-500.0,0.00015483,2]
[334093798,1722763839586,-500.0,0.00015483,2]
[334093799,1722763839596,-500.0,0.00015483,2]
[334093800,1722763839605,-500.0,0.00015483,2]